bitfinex-derivatives/quotes_BTCF0:USTF0_20250406
["timestamp","ask_amount","ask_price","bid_price","bid_amount"]
[1743980449086,0.1282065,78060.0,78059.0,0.00144]
[1743980449789,0.1886,78061.0,78059.0,0.12953837]
[1743980449972,0.1282065,78060.0,78059.0,0.12953837]
[1743980450577,0.4890065,78060.0,78059.0,0.12953837]
[1743980450876,0.1282262,78048.0,78047.0,0.3608]
[1743980451081,0.0641056,78058.0,78047.0,0.00108]
[1743980451277,0.1282245,78049.0,78048.0,0.1888]
[1743980451482,0.1282245,78049.0,78048.0,0.3179271]
[1743980451676,0.0641095,78053.0,78048.0,0.3179271]
[1743980451881,0.3608,78049.0,78040.0,0.01393176]
[1743980452076,0.3608,78049.0,78032.0,0.3608]
[1743980452077,0.0641245,78035.0,78032.0,0.01397396]
[1743980452277,0.1282574,78029.0,78028.0,0.1888]
[1743980452784,0.00019129,78036.0,78028.0,0.87283202]
[1743980453085,0.00019129,78036.0,78034.0,0.3608]
[1743980453289,0.00019129,78036.0,78035.0,0.5081475]
[1743980453485,0.00019129,78036.0,78035.0,0.3799]
[1743980453799,0.12843719,78036.0,78035.0,0.50805255]
[1743980453978,0.12843719,78036.0,78035.0,0.32325255]
[1743980454179,0.12843719,78036.0,78035.0,0.12815255]
[1743980454582,0.00119129,78036.0,78035.0,0.25640005]
[1743980454886,0.1923651,78038.0,78035.0,0.12815255]
[1743980455087,0.3166442,78037.0,78036.0,0.1951]
[1743980455279,0.00072,78037.0,78036.0,0.1959]
[1743980455582,0.1988,78050.0,78036.0,0.50978]
[1743980455785,0.3608,78054.0,78048.0,0.1282256]
[1743980456080,0.1282229,78050.0,78049.0,0.3923]
[1743980456284,0.0641101,78052.0,78049.0,0.39302]
[1743980456482,0.00068,78052.0,78051.0,0.192331]
[1743980456790,0.3608,78061.0,78060.0,0.1282065]
[1743980456981,0.36152,78061.0,78060.0,0.1289265]
[1743980457177,0.22109892,78068.0,78065.0,0.1281972]
[1743980457377,0.488995,78067.0,78066.0,0.01724885]
[1743980457577,0.882415,78067.0,78066.0,0.01816885]
[1743980457779,0.882415,78067.0,78066.0,0.14627461]
[1743980458376,0.521615,78067.0,78066.0,0.12902576]
[1743980458582,0.521615,78067.0,78066.0,0.14630548]
[1743980458785,0.327915,78067.0,78066.0,0.14630548]
[1743980459190,0.522615,78067.0,78066.0,0.14630548]
[1743980459375,0.1282048,78061.0,78060.0,0.3618]
[1743980459581,0.1288848,78061.0,78060.0,0.3626]
[1743980459889,0.1288848,78061.0,78060.0,0.68249591]
[1743980460084,0.00068,78061.0,78060.0,0.99490241]
[1743980460289,0.1288848,78061.0,78060.0,0.32169591]
[1743980460479,0.00068,78061.0,78060.0,0.32169591]
[1743980460792,0.00068,78061.0,78060.0,0.90070241]
[1743980460993,0.006,78067.0,78066.0,0.1281966]
[1743980461178,0.1866849,78078.0,78066.0,0.5108]
[1743980461380,0.1866849,78078.0,78077.0,0.1281785]
[1743980461582,0.3148618,78078.0,78077.0,0.1166]
[1743980461988,0.1281933,78068.0,78067.0,0.377]
[1743980462191,0.1281933,78068.0,78048.0,0.01924]
[1743980462192,0.1282065,78060.0,78048.0,0.01924]
[1743980462392,0.4890065,78060.0,78053.0,0.1909]
[1743980462588,0.3608,78060.0,78059.0,0.12840027]
[1743980462983,0.3608,78060.0,78059.0,0.27371028]
[1743980463290,0.4890065,78060.0,78059.0,0.14550218]
[1743980463984,0.4890065,78060.0,78059.0,1e-08]
[1743980464486,0.4890065,78060.0,78059.0,0.12810741]
[1743980464684,0.4890065,78060.0,78059.0,1e-08]
[1743980465082,0.4896865,78060.0,78059.0,0.12810741]
[1743980465285,0.4896865,78060.0,78059.0,0.12898741]
[1743980465479,0.36148,78060.0,78059.0,0.25719551]
[1743980465995,0.00068,78060.0,78059.0,0.25719551]
[1743980466295,0.00068,78060.0,78059.0,0.73455551]
[1743980466494,0.00019217,78067.0,78066.0,0.1281966]
[1743980466686,0.00107217,78067.0,78066.0,0.4899166]
[1743980466995,0.00019217,78067.0,78066.0,0.4899166]
[1743980467183,0.1281793,78077.0,78067.0,0.0640972]
[1743980467390,0.1290996,78077.0,78076.0,0.1281798]
[1743980467690,0.1290985,78077.0,78076.0,0.00088]
[1743980467994,0.1290985,78077.0,78076.0,0.63665611]
[1743980467995,0.00092,78077.0,78076.0,0.63665611]
[1743980468297,0.00092,78077.0,78076.0,0.65045506]
[1743980468486,0.3608,78103.0,78093.0,0.1281523]
[1743980468682,0.0650754,78094.0,78091.0,0.1281548]
[1743980468884,0.002,78094.0,78093.0,0.1281523]
[1743980469193,0.3608,78103.0,78099.0,0.1281424]
[1743980469493,0.10116,78100.0,78099.0,0.1293824]
[1743980469698,0.10116,78100.0,78099.0,0.25743403]
[1743980469988,0.2293008,78100.0,78099.0,0.12929163]
[1743980470194,0.2293008,78100.0,78099.0,0.12921163]
[1743980470397,0.10116,78100.0,78099.0,0.25735403]
[1743980470787,0.2293008,78100.0,78099.0,0.25735403]
[1743980471189,0.2293008,78100.0,78099.0,0.12921163]
[1743980471388,0.2293008,78100.0,78099.0,0.14562417]
[1743980471593,0.10116,78100.0,78099.0,0.27496657]
[1743980472084,0.2293008,78100.0,78099.0,0.27496657]
[1743980472491,0.10116,78100.0,78099.0,0.27496657]
[1743980472695,0.10116,78100.0,78099.0,0.65576657]
[1743980472891,0.364,78117.0,78099.0,0.52762417]
[1743980473200,0.19252315,78111.0,78110.0,0.1281244]
[1743980473397,0.19252315,78111.0,78110.0,0.14721694]
[1743980473805,0.19252315,78111.0,78110.0,0.27524971]
[1743980473996,0.19252315,78111.0,78110.0,0.65884971]
[1743980474793,0.18680204,78116.0,78112.0,0.06406]
[1743980474993,0.18680204,78116.0,78113.0,0.38787254]
[1743980475192,0.3787,78115.0,78114.0,0.01757254]
[1743980475388,0.5068162,78115.0,78114.0,0.14714974]
[1743980476295,0.5068162,78115.0,78114.0,0.14558974]
[1743980476493,0.5068162,78115.0,78114.0,0.16302968]
[1743980476893,0.3787,78115.0,78114.0,0.16302968]
[1743980477199,0.3787,78115.0,78114.0,0.29266748]
[1743980477600,0.18680204,78116.0,78115.0,0.1281162]
[1743980477900,0.18680204,78116.0,78115.0,0.32830874]
[1743980478094,0.18680204,78116.0,78115.0,0.72617497]
[1743980478297,0.18680204,78116.0,78115.0,0.85419217]
[1743980478491,0.001,78118.0,78117.0,0.1281129]
[1743980478702,0.001,78118.0,78117.0,0.14568544]
[1743980479100,0.001,78118.0,78117.0,0.01757254]
[1743980479399,0.001,78118.0,78117.0,0.1455881]
[1743980479599,0.001,78118.0,78117.0,0.29114094]
[1743980480597,0.4443425,78134.0,78132.0,0.1280883]
[1743980480800,0.3803,78134.0,78133.0,0.14565924]
[1743980481198,0.3608,78135.0,78134.0,0.1280978]
[1743980481393,0.3608,78135.0,78134.0,0.16311028]
[1743980481809,0.3608,78135.0,78134.0,0.29109635]
[1743980482307,0.3608,78135.0,78134.0,0.67469635]
[1743980482695,0.3767,78146.0,78141.0,0.1280864]
[1743980482900,0.3767,78146.0,78141.0,0.50645894]
[1743980483312,0.3767,78146.0,78141.0,0.91209888]
[1743980483602,0.3767,78146.0,78141.0,1.03989332]
[1743980483999,0.3767,78146.0,78141.0,1.04145332]
[1743980484404,0.3767,78146.0,78141.0,1.15777332]
[1743980484803,0.3767,78146.0,78141.0,1.14994053]
[1743980485495,0.128082,78144.0,78141.0,0.63365413]
[1743980485699,0.5688193,78146.0,78141.0,0.76174053]
[1743980485904,0.4407398,78146.0,78141.0,0.76174053]
[1743980486105,0.3767,78146.0,78141.0,0.76174053]
[1743980486305,0.3767,78146.0,78141.0,0.77880928]
[1743980487100,0.3767,78146.0,78141.0,0.77864738]
[1743980487507,0.3767,78146.0,78141.0,0.96894738]
[1743980489005,0.3608,78161.0,78148.0,0.0640369]
[1743980489207,0.377,78160.0,78159.0,0.1280569]
[1743980489516,0.14852103,78175.0,78165.0,0.128047]
[1743980489716,0.1972,78171.0,78165.0,0.52479482]
[1743980490008,0.1919,78174.0,78168.0,0.0640203]
[1743980490211,0.14852103,78175.0,78174.0,0.1280323]
[1743980490414,0.14852103,78175.0,78174.0,0.26321067]
[1743980490614,0.14852103,78175.0,78174.0,0.65077942]
[1743980490915,0.05523422,78175.0,78174.0,0.77870409]
[1743980491104,0.05523422,78175.0,78174.0,0.79241168]
[1743980491613,0.05523422,78175.0,78174.0,0.77499331]
[1743980491814,0.1919,78186.0,78181.0,0.1280208]
[1743980492009,0.0639873,78210.0,78183.0,0.0640084]
[1743980492211,0.3608,78208.0,78192.0,0.3608]
[1743980492411,0.2951294,78216.0,78192.0,0.00152]
[1743980492412,0.4888012,78193.0,78192.0,0.00152]
[1743980492616,0.1280143,78185.0,78184.0,0.12808304]
[1743980492913,0.1280497,78164.0,78160.0,0.1280542]
[1743980493113,0.3608,78168.0,78160.0,0.00108]
[1743980493309,0.1280519,78162.0,78161.0,0.01718221]
[1743980493509,0.1280519,78162.0,78161.0,0.01480442]
[1743980493814,0.4888519,78162.0,78161.0,0.00108]
[1743980494010,0.0640276,78161.0,78150.0,0.1162]
[1743980494205,0.4424276,78161.0,78160.0,0.001]
[1743980495114,0.37908,78161.0,78160.0,0.03554454]
[1743980495313,0.37908,78161.0,78160.0,0.16349458]
[1743980495817,0.5071336,78161.0,78160.0,0.16249458]
[1743980496014,0.5071336,78161.0,78160.0,0.16357458]
[1743980496417,0.5071336,78161.0,78160.0,0.03562454]
[1743980496605,0.5071336,78161.0,78160.0,0.03454454]
[1743980496811,0.6571336,78161.0,78160.0,0.03454454]
[1743980497112,0.1280585,78158.0,78157.0,0.3608]
[1743980497318,0.12909851,78158.0,78157.0,0.36184]
[1743980497717,0.12909851,78158.0,78157.0,0.00104]
[1743980498017,0.1280634,78155.0,78154.0,0.00019191]
[1743980498218,0.1287034,78155.0,78154.0,0.00019191]
[1743980498617,0.1287034,78155.0,78154.0,0.12926359]
[1743980499014,0.00064,78155.0,78154.0,0.12926359]
[1743980499217,0.00064,78155.0,78154.0,0.25732869]
[1743980499521,0.1280946,78136.0,78135.0,0.3608]
[1743980499714,0.4895346,78136.0,78135.0,0.00068]
[1743980499909,0.0640512,78132.0,78130.0,0.1281038]
[1743980500117,0.3866,78135.0,78134.0,0.1280978]
[1743980500323,0.0640246,78164.0,78134.0,0.47692]
[1743980500623,0.0640215,78168.0,78160.0,0.3608]
[1743980500823,0.2573221,78167.0,78160.0,0.3608]
[1743980501020,0.1280491,78164.0,78160.0,0.3608]
[1743980501219,0.1998,78163.0,78160.0,0.3608]
[1743980501421,0.00019191,78172.0,78171.0,0.1280372]
[1743980501721,0.0640095,78183.0,78176.0,0.1280285]
[1743980501722,0.1998,78181.0,78176.0,0.1280285]
[1743980501923,0.1998,78181.0,78180.0,0.3608]
[1743980502118,0.3278208,78181.0,78180.0,0.3608]
[1743980502323,0.1280356,78172.0,78171.0,0.1279394]
[1743980502521,0.1280536,78161.0,78160.0,0.3608]
[1743980502823,0.1280782,78146.0,78145.0,0.3608]
[1743980503028,0.1280782,78146.0,78145.0,0.37041873]
[1743980503224,0.1280782,78146.0,78145.0,0.3608]
[1743980503912,0.5252782,78146.0,78145.0,0.3608]
[1743980504716,0.3972,78146.0,78145.0,0.4888798]
[1743980505029,0.5252782,78146.0,78145.0,0.61684622]
[1743980505321,0.39788,78146.0,78145.0,0.61752622]
[1743980505715,0.5259582,78146.0,78145.0,0.61752622]
[1743980505914,0.39788,78146.0,78145.0,0.61752622]
[1743980506224,0.5259582,78146.0,78145.0,0.48944642]
[1743980506612,0.5259582,78146.0,78145.0,0.70254642]
[1743980506817,0.5259582,78146.0,78145.0,0.12864642]
[1743980507017,0.1280896,78139.0,78138.0,0.00019191]
[1743980507325,0.1281044,78130.0,78129.0,0.37485211]
[1743980507522,0.12906441,78130.0,78129.0,0.37549211]
[1743980507720,0.0640561,78126.0,78113.0,0.3608]
[1743980507923,0.1281306,78114.0,78113.0,0.00072]
[1743980508122,0.1292906,78114.0,78113.0,0.14181515]
[1743980508317,0.00116,78114.0,78113.0,0.25675018]
[1743980508527,0.1281306,78114.0,78113.0,0.25675018]
[1743980508729,0.064061,78120.0,78117.0,0.128124]
[1743980509026,0.064061,78120.0,78117.0,0.00068]
[1743980509027,0.0640621,78118.0,78117.0,0.00068]
[1743980509327,0.1921936,78116.0,78115.0,0.128129]
[1743980509522,8.982e-05,78119.0,78118.0,0.1281241]
[1743980509727,0.00088982,78119.0,78118.0,0.1289241]
[1743980509917,8.982e-05,78119.0,78118.0,0.5102241]
[1743980510117,0.00019191,78121.0,78120.0,0.1281208]
[1743980510319,0.1832,78139.0,78120.0,0.3608]
[1743980510627,0.6400652,78186.0,78118.0,0.50931228]
[1743980510628,0.0640419,78143.0,78137.0,0.3608]
[1743980510829,0.3608,78163.0,78140.0,0.3608]
[1743980511021,0.1280653,78154.0,78152.0,0.1280674]
[1743980511327,0.185,78165.0,78153.0,1.0986]
[1743980511522,0.185,78165.0,78164.0,0.3608]
[1743980511717,0.313047,78165.0,78164.0,0.37487166]
[1743980512225,0.313047,78165.0,78164.0,0.5028258]
[1743980512426,0.001,78190.0,78164.0,0.5028258]
[1743980512625,0.001,78190.0,78177.0,0.3608]
[1743980512626,0.1280257,78178.0,78177.0,0.3608]
[1743980512818,0.1994,78181.0,78177.0,0.3608]
[1743980513021,0.1280257,78178.0,78177.0,0.3608]
[1743980513527,0.1280257,78178.0,78177.0,0.48871404]
[1743980513930,0.1280257,78178.0,78177.0,0.12791404]
[1743980514225,0.128029,78176.0,78175.0,0.3608]
[1743980514819,0.315929,78176.0,78175.0,0.3608]
[1743980515230,0.316809,78176.0,78175.0,0.48943404]
[1743980515430,0.1280372,78171.0,78170.0,0.00019191]
[1743980515629,0.1290372,78171.0,78170.0,0.00019191]
[1743980515935,0.1280569,78159.0,78158.0,0.01407373]
[1743980516134,0.1290569,78159.0,78158.0,3e-08]
[1743980516334,0.1280798,78145.0,78144.0,9.038e-05]
[1743980516628,0.1280798,78145.0,78144.0,0.12881178]
[1743980516629,0.1293998,78145.0,78144.0,0.12881178]
[1743980516826,0.1293998,78145.0,78144.0,0.00073038]
[1743980517228,0.5034998,78145.0,78144.0,0.00073038]
[1743980517629,0.19002,78145.0,78144.0,0.25677983]
[1743980517831,0.1854,78151.0,78150.0,0.1280716]
[1743980518035,0.50349,78151.0,78150.0,0.00064]
[1743980518532,0.1330798,78145.0,78144.0,9.038e-05]
[1743980518734,0.1280913,78138.0,78123.0,0.36182402]
[1743980518929,0.1281142,78124.0,78123.0,0.00102402]
[1743980519130,0.4902342,78124.0,78123.0,0.00166402]
[1743980519734,0.86262458,78124.0,78123.0,0.00166402]
[1743980520424,0.86262458,78124.0,78123.0,0.00102402]
[1743980521035,0.50182458,78124.0,78123.0,0.00102402]
[1743980521242,0.00141038,78124.0,78123.0,0.12902647]
[1743980521441,0.12820458,78124.0,78123.0,0.31562647]
[1743980521626,0.1281257,78117.0,78116.0,3e-08]
[1743980521826,0.4889257,78117.0,78116.0,3e-08]
[1743980522137,0.78342386,78117.0,78116.0,3e-08]
[1743980522341,0.78342386,78117.0,78106.0,0.17192536]
[1743980522342,0.1281421,78107.0,78106.0,0.17192536]
[1743980522642,0.12823248,78107.0,78106.0,0.17192536]
[1743980523236,0.50067249,78107.0,78106.0,0.17192536]
[1743980523934,0.50067249,78107.0,78100.0,0.3027771]
[1743980523935,0.128152,78101.0,78100.0,0.192]
[1743980524142,0.1281536,78100.0,78099.0,0.00121636]
[1743980524439,0.31109361,78100.0,78099.0,0.00121636]
[1743980524627,0.12817,78090.0,78089.0,0.3608]
[1743980524827,0.1281782,78085.0,78084.0,0.192]
[1743980525031,0.1281848,78081.0,78080.0,9.55e-05]
[1743980525241,0.12942481,78081.0,78080.0,9.55e-05]
[1743980525439,0.00133039,78081.0,78080.0,0.25632369]
[1743980525635,9.038e-05,78081.0,78080.0,0.61712369]
[1743980525832,0.12827518,78081.0,78080.0,0.80912369]
[1743980526339,0.12827518,78081.0,78080.0,0.68093729]
[1743980526535,0.12951519,78081.0,78080.0,0.68093729]
[1743980527040,0.13151519,78081.0,78080.0,0.48893729]
[1743980527444,0.32561519,78081.0,78080.0,0.12813729]
[1743980527745,0.32561519,78081.0,78080.0,9.55e-05]
[1743980527931,0.68641519,78081.0,78080.0,9.55e-05]
[1743980528131,0.32561519,78081.0,78080.0,0.0030955]
[1743980528543,0.32561519,78081.0,78080.0,9.55e-05]
[1743980528740,0.13751519,78081.0,78080.0,0.48896845]
[1743980529341,0.13551519,78081.0,78080.0,0.48896845]
[1743980529949,0.00133039,78081.0,78080.0,0.49096845]
[1743980530133,9.038e-05,78081.0,78080.0,0.49296845]
[1743980530331,0.0640672,78104.0,78080.0,0.64296845]
[1743980530531,0.0640602,78113.0,78093.0,0.1281523]
[1743980530845,0.0640602,78113.0,78100.0,0.3608]
[1743980530846,0.1281392,78101.0,78100.0,0.3608]
[1743980531638,0.1281392,78101.0,78100.0,0.7216]
[1743980531938,0.00019203,78108.0,78100.0,0.86335522]
[1743980532139,0.0640535,78121.0,78107.0,0.3608]
[1743980532140,0.00124001,78121.0,78107.0,0.3608]
[1743980532340,0.1281064,78121.0,78120.0,0.7216]
[1743980532736,0.1294264,78121.0,78120.0,0.84961802]
[1743980533742,0.00132,78121.0,78120.0,0.97772602]
[1743980533947,0.1281064,78121.0,78120.0,0.84961802]
[1743980534244,0.1281064,78121.0,78120.0,0.48881802]
[1743980535041,0.1281178,78114.0,78113.0,0.00019203]
[1743980535239,0.4897578,78114.0,78113.0,0.00019203]
[1743980535440,0.1281342,78104.0,78103.0,0.1896]
[1743980535643,0.1281342,78104.0,78090.0,0.1903]
[1743980535644,0.1281556,78091.0,78090.0,0.1903]
[1743980535946,0.1281556,78091.0,78090.0,0.38054]
[1743980536153,0.4898356,78091.0,78090.0,0.00064]
[1743980536335,0.0640813,78087.0,78067.0,0.3027771]
[1743980536647,0.0640813,78087.0,78069.0,0.1896]
[1743980536648,0.12819,78070.0,78069.0,0.1896]
[1743980536940,0.1281933,78068.0,78067.0,0.3034171]
[1743980537244,0.49003331,78068.0,78067.0,0.3044571]
[1743980537439,0.49012711,78068.0,78067.0,0.3038171]
[1743980537840,0.00113381,78068.0,78067.0,0.56010637]
[1743980538143,0.0640886,78078.0,78075.0,0.1281806]
[1743980538338,0.0640886,78078.0,78067.0,0.79271137]
[1743980538339,0.00104001,78078.0,78077.0,0.1922677]
[1743980538539,0.1281703,78082.0,78081.0,0.1281719]
[1743980538740,0.00112001,78087.0,78086.0,0.1281638]
[1743980538938,0.1281621,78087.0,78086.0,0.00064]
[1743980539238,0.1281818,78075.0,78074.0,0.3608]
[1743980539446,0.12922181,78075.0,78074.0,0.00064]
[1743980539643,0.1281966,78066.0,78065.0,0.1834]
[1743980539849,0.00108,78066.0,78065.0,0.18404]
[1743980540050,0.0640956,78070.0,78065.0,0.18404]
[1743980540051,0.0640956,78070.0,78068.0,0.12808279]
[1743980540233,0.12923071,78070.0,78069.0,0.3649]
[1743980540439,0.49003071,78070.0,78069.0,0.1834]
[1743980540637,0.1281999,78064.0,78063.0,0.12808279]
[1743980540844,0.1282065,78060.0,78059.0,0.1834]
[1743980541148,0.1282081,78059.0,78058.0,0.00019203]
[1743980541343,0.3133881,78059.0,78058.0,0.00019203]
[1743980541546,0.3133881,78059.0,78051.0,0.00102496]
[1743980541547,0.1282196,78052.0,78051.0,6e-08]
[1743980541846,0.49005961,78052.0,78051.0,6e-08]
[1743980542052,0.128259,78028.0,78023.0,0.00010554]
[1743980542342,0.12929901,78028.0,78023.0,0.00010554]
[1743980542548,0.12929901,78028.0,78024.0,0.1958]
[1743980542943,0.32469901,78028.0,78027.0,1e-08]
[1743980543144,0.1282705,78021.0,78020.0,0.00019216]
[1743980543339,0.1282886,78010.0,78009.0,0.1958]
[1743980543940,0.1954,78020.0,78019.0,0.1282738]
[1743980544147,0.19666724,78020.0,78009.0,0.32397144]
[1743980544449,0.00010724,78020.0,78009.0,0.1958]
[1743980544650,0.00010724,78020.0,78019.0,0.1282738]
[1743980544840,0.1282591,78028.0,78018.0,0.3608]
[1743980544841,0.3608,78047.0,78018.0,0.3608]
[1743980545037,0.1282404,78040.0,78031.0,0.3608]
[1743980545240,0.0641155,78045.0,78032.0,0.3022]
[1743980545437,0.00104001,78045.0,78044.0,0.1282327]
[1743980545647,0.0641051,78058.0,78044.0,0.36184]
[1743980545945,0.0641051,78058.0,78057.0,0.1282114]
[1743980545946,0.00072,78058.0,78057.0,0.1282114]
[1743980546146,0.00019216,78059.0,78058.0,0.1282097]
[1743980546351,0.00019216,78059.0,78058.0,0.1288497]
[1743980546554,0.001,78070.0,78064.0,0.1281993]
[1743980546847,0.001,78070.0,78069.0,0.1281917]
[1743980547054,0.001,78070.0,78069.0,0.1288317]
[1743980547357,0.001,78070.0,78069.0,0.14295743]
[1743980547547,0.001,78070.0,78069.0,0.01476573]
[1743980547748,0.001,78070.0,78069.0,0.14285672]
[1743980547948,0.12919,78070.0,78069.0,0.29285672]
[1743980548152,0.00019216,78077.0,78072.0,0.0640931]
[1743980548454,0.00019216,78077.0,78076.0,0.4889802]
[1743980548663,0.00019216,78077.0,78076.0,0.4896202]
[1743980549052,0.12837066,78077.0,78076.0,0.36144]
[1743980549259,0.00019216,78077.0,78076.0,0.36144]
[1743980549447,0.001,78094.0,78077.0,0.064089]
[1743980549645,0.1281539,78092.0,78091.0,0.3608]
[1743980549956,0.0008,78092.0,78091.0,0.72224]
[1743980550148,0.001,78094.0,78091.0,1.00031951]
[1743980550355,0.0640587,78115.0,78091.0,0.85031951]
[1743980550549,0.1281281,78108.0,78100.0,0.3608]
[1743980550754,0.00019216,78104.0,78100.0,0.4768]
[1743980550951,0.198,78117.0,78103.0,0.1281359]
[1743980551263,0.1291123,78118.0,78114.0,0.3608]
[1743980551264,0.001,78118.0,78114.0,0.3608]
[1743980551462,0.1291125,78118.0,78115.0,0.3664]
[1743980551752,0.1291125,78118.0,78117.0,0.3608]
[1743980551959,0.001,78118.0,78117.0,0.3608]
[1743980552154,0.001,78118.0,78117.0,0.84316]
[1743980552454,0.00019171,78125.0,78124.0,0.1281014]
[1743980552659,0.00019171,78125.0,78124.0,0.37476568]
[1743980553048,0.00019171,78125.0,78124.0,0.3608]
[1743980553253,0.12829151,78125.0,78124.0,0.12801228]
[1743980553453,0.1281113,78118.0,78117.0,0.47676]
[1743980553653,0.1281113,78118.0,78117.0,0.3608]
[1743980554152,0.1281228,78111.0,78110.0,0.00019204]
[1743980554758,0.1281228,78111.0,78110.0,0.1282158]
[1743980555259,0.1287628,78111.0,78110.0,0.1282158]
[1743980555655,0.4895628,78111.0,78110.0,0.00019204]
[1743980555857,0.4895628,78111.0,78101.0,0.3608]
[1743980555858,0.1281375,78102.0,78101.0,0.3608]
[1743980556156,0.1281605,78088.0,78087.0,0.00016582]
[1743980556459,0.1289205,78088.0,78087.0,0.00080582]
[1743980556665,0.1289205,78088.0,78087.0,0.00016582]
[1743980557165,0.00076,78088.0,78087.0,0.25638938]
[1743980557461,0.06426654,78095.0,78087.0,0.48970728]
[1743980557666,0.1281588,78089.0,78088.0,0.1827]
[1743980557858,0.1289588,78089.0,78088.0,0.18346]
[1743980558364,0.0008,78089.0,78088.0,0.31152146]
[1743980558660,0.0640624,78110.0,78088.0,1.00392146]
[1743980558963,0.1281424,78099.0,78098.0,0.3608]
[1743980559159,0.1289424,78099.0,78098.0,0.3616]
[1743980559753,0.5172424,78099.0,78098.0,0.3616]
[1743980559959,0.1289424,78099.0,78098.0,0.48964343]
[1743980560162,0.0008,78099.0,78098.0,0.61778753]
[1743980560364,0.00019171,78106.0,78105.0,0.1281326]
[1743980560665,0.00019171,78106.0,78105.0,0.4900526]
[1743980560863,0.12832271,78106.0,78105.0,0.00112]
[1743980561056,0.12832271,78106.0,78105.0,0.68716343]
[1743980561252,0.12832271,78106.0,78105.0,0.32636343]
[1743980561458,0.12832271,78106.0,78105.0,0.00112]
[1743980561666,0.1281424,78099.0,78098.0,0.3608]
[1743980561868,0.1281424,78099.0,78098.0,0.36184]
[1743980562066,0.1281424,78099.0,78098.0,0.36584]
[1743980562459,0.1281424,78099.0,78098.0,0.49387195]
[1743980562659,0.1281424,78099.0,78098.0,0.48987195]
[1743980562956,0.1281424,78099.0,78098.0,0.49387195]
[1743980563461,0.064053,78122.0,78098.0,0.64387195]
[1743980563657,0.1281157,78116.0,78112.0,0.0640605]
[1743980563967,0.0640559,78118.0,78113.0,0.3897]
[1743980563968,0.1281163,78115.0,78113.0,0.3897]
[1743980564166,0.0640483,78127.0,78118.0,0.1281113]
[1743980564360,0.064038,78140.0,78123.0,0.0640513]
[1743980564561,0.1280916,78130.0,78129.0,0.3608]
[1743980564759,0.0640435,78133.0,78129.0,0.3608]
[1743980564760,0.001,78142.0,78129.0,0.36184]
[1743980565066,0.001,78142.0,78132.0,0.4918015]
[1743980565256,0.001,78142.0,78141.0,0.1280736]
[1743980565456,0.3779,78169.0,78144.0,0.0640337]
[1743980565761,0.0640281,78152.0,78146.0,0.4888654]
[1743980566060,0.1280503,78156.0,78148.0,0.1280609]
[1743980566264,0.3779,78165.0,78149.0,0.11584]
[1743980566462,0.0640179,78164.0,78155.0,0.3637133]
[1743980566661,0.3779,78165.0,78156.0,0.3671]
[1743980566961,0.1280523,78154.0,78153.0,0.3608]
[1743980567269,0.1280621,78148.0,78147.0,0.00019204]
[1743980567457,0.3608,78148.0,78124.0,0.3608]
[1743980567657,0.1280998,78125.0,78124.0,0.3608]
[1743980569162,0.2630489,78127.0,78126.0,0.1280982]
[1743980569362,0.1280998,78125.0,78124.0,0.49380081]
[1743980569557,0.1280998,78125.0,78124.0,0.003]
[1743980569870,0.1281113,78118.0,78117.0,0.00019191]
[1743980570072,0.4895913,78118.0,78117.0,1e-08]
[1743980570279,0.1281408,78100.0,78099.0,0.00102433]
[1743980570460,0.00068,78100.0,78099.0,0.12916673]
[1743980570767,0.1281408,78100.0,78099.0,0.00178433]
[1743980570964,0.1288608,78100.0,78099.0,0.12982612]
[1743980571169,0.1288608,78100.0,78099.0,0.00178433]
[1743980571364,0.1288608,78100.0,78099.0,0.00102433]
[1743980571669,0.1288608,78100.0,78087.0,0.00016582]
[1743980571670,0.1281605,78088.0,78087.0,0.00016582]
[1743980571875,0.8505205,78088.0,78087.0,0.00092582]
[1743980572072,0.4897205,78088.0,78087.0,0.00016582]
[1743980572369,0.4897205,78088.0,78056.0,0.064106]
[1743980572370,0.52126624,78088.0,78049.0,0.0096063]
[1743980572562,0.1281978,78067.0,78066.0,0.1281937]
[1743980572763,0.1281966,78066.0,78065.0,0.1821]
[1743980572959,0.1289566,78066.0,78065.0,0.18286]
[1743980573165,0.12907072,78066.0,78065.0,0.00076]
[1743980573465,0.51487072,78066.0,78065.0,0.25704919]
[1743980573769,0.0640973,78068.0,78065.0,0.25704919]
[1743980573770,0.1281618,78088.0,78086.0,0.1281624]
[1743980573978,0.00092,78088.0,78087.0,0.1281621]
[1743980574284,0.00092,78088.0,78087.0,0.3208821]
[1743980574482,0.1281605,78088.0,78087.0,0.51111755]
[1743980574687,0.1288922,78088.0,78087.0,0.51111755]
[1743980574876,0.1282122,78088.0,78087.0,0.51111755]
[1743980575073,0.1282122,78088.0,78087.0,0.12901755]
[1743980575279,0.1282122,78088.0,78087.0,0.00075004]
[1743980575477,0.128172,78081.0,78080.0,0.00019204]
[1743980575783,0.128172,78081.0,78063.0,0.3608]
[1743980575784,0.1281999,78064.0,78063.0,0.3608]
[1743980575986,0.1282114,78057.0,78056.0,0.3719]
[1743980576175,0.128213,78056.0,78055.0,0.3608]
[1743980576481,0.518913,78056.0,78055.0,0.3608]
[1743980578788,0.518913,78056.0,78055.0,0.3668]
[1743980578987,0.518913,78056.0,78055.0,0.3728]
[1743980579390,5.17e-05,78057.0,78055.0,0.50091397]
[1743980579587,0.0640905,78076.0,78056.0,0.3811]
[1743980579588,0.0555681,78058.0,78056.0,0.3811]
[1743980579779,0.0640905,78076.0,78056.0,0.3811]
[1743980579974,0.1282114,78057.0,78056.0,0.38186]
[1743980580383,0.1288914,78057.0,78056.0,0.38186]
[1743980580574,0.00068,78057.0,78056.0,0.63818614]
[1743980580774,0.12839427,78063.0,78062.0,0.1282032]
[1743980580975,0.12915427,78063.0,78062.0,0.00068]
[1743980581690,0.12915427,78063.0,78062.0,0.12879232]
[1743980582192,0.12915427,78063.0,78062.0,0.00668]
[1743980582389,0.50055427,78063.0,78062.0,0.006]
[1743980582689,0.50055427,78063.0,78062.0,0.012]
[1743980583189,0.50055427,78063.0,78062.0,0.01272]
[1743980583382,0.3608,78082.0,78062.0,0.65162248]
[1743980583582,0.1290973,78078.0,78077.0,0.1281785]
[1743980583788,0.1281773,78078.0,78077.0,0.39226]
[1743980583979,0.1291373,78078.0,78077.0,0.39226]
[1743980584182,0.18674464,78097.0,78083.0,0.1281666]
[1743980584384,0.18674464,78097.0,78084.0,0.3882]
[1743980584385,0.1281626,78087.0,78084.0,0.3882]
[1743980584579,0.00116,78087.0,78086.0,0.4889638]
[1743980584790,0.1281561,78091.0,78090.0,0.1281572]